[Event "NOR-ch Elite 2019"]
[Site "Larvik"]
[Date "2019.07.07"]
[Round "3.9"]
[White "Tryggestad, Andreas Garberg"]
[Black "Stokke, Kjetil"]
[Result "0-1"]
[ECO "E70"]
[WhiteElo "2336"]
[BlackElo "2336"]
[Annotator "NA"]
[PlyCount "49"]
[EventDate "2019.07.05"]
[EventType "swiss"]
[EventCountry "NOR"]
[SourceTitle "playchess.com"]
[Source "ChessBase"]
[SourceQuality "1"]
[TimeControl "40/5400+30:1800+30"]

1. d4 {[%emt 0:00:00]} Nf6 {[%emt 0:00:02]} 2. c4 {[%emt 0:00:00]} g6 {[%emt 0:00:06]} 3. Nc3 {[%emt 0:00:00]} Bg7 {[%emt 0:00:40]} 4. e4 {[%emt 0:00:00]} d6 {[%emt 0:00:04]} 5. Bd3 {[%emt 0:00:00]} O-O {[%emt 0:00:06]} 6. Nge2 {[%emt 0:00:05]} Nc6 {[%emt 0:00:08]} 7. O-O {[%emt 0:00:17]} e5 {[%emt 0:00:04]} 8. d5 {[%emt 0:00:24]} Nd4 {[%emt 0:00:06]} 9. Nxd4 {[%emt 0:00:08]} exd4 {[%emt 0:00:05]} 10. Ne2 {[%emt 0:00:06]} Re8 {[%emt 0:00:06]} 11. f3 {[%emt 0:00:03]} c5 {[%emt 0:00:05]} 12. Bg5 {[%emt 0:00:04]} h6 {[%emt 0:00:21]} 13. Bd2 {[%emt 0:00:05]} Bd7 {[%emt 0:07:52]} 14. Qc2 {[%emt 0:00:05]} a6 {[%emt 0:00:37]} 15. b4 {[%emt 0:19:32]} b6 {[%emt 0:13:32]} 16. bxc5 {[%emt 0:07:04]} bxc5 {[%emt 0:00:07]} 17. Ng3 {[%emt 0:00:22]} Rb8 {[%emt 0:01:56]} 18. f4 {[%emt 0:00:18]} Ng4 {[%emt 0:01:14]} 19. e5 {[%emt 0:15:25]} Qh4 {[%emt 0:08:50]} 20. h3 {[%emt 0:01:09]} Ne3 {[%emt 0:01:58]} 21. Bxe3 {[%emt 0:00:17]} dxe3 {[%emt 0:00:05]} 22. Ne4 {[%emt 0:08:17]} dxe5 {[%emt 0:00:34]} 23. Nxc5 {[%emt 0:16:34]} exf4 {[%emt 0:05:03]} 24. Rab1 {[%emt 0:09:39]} e2 {[%emt 0:04:00]} 25. Rxb8 {[%emt 0:03:00]} 0-1

[Event "NOR-ch Elite 2019"]
[Site "Larvik"]
[Date "2019.07.07"]
[Round "3.10"]
[White "Moen, Andreas G.R."]
[Black "Vestby-Ellingsen, Mads"]
[Result "1-0"]
[ECO "D77"]
[WhiteElo "2322"]
[BlackElo "2335"]
[Annotator "NA"]
[PlyCount "101"]
[EventDate "2019.07.05"]
[EventType "swiss"]
[EventCountry "NOR"]
[SourceTitle "playchess.com"]
[Source "ChessBase"]
[SourceQuality "1"]
[TimeControl "40/5400+30:1800+30"]

1. Nf3 {[%emt 0:00:00]} Nf6 {[%emt 0:02:00]} 2. d4 {[%emt 0:01:14]} g6 {[%emt 0:00:16]} 3. g3 {[%emt 0:00:38]} d5 {[%emt 0:01:25]} 4. Bg2 {[%emt 0:00:44]} Bg7 {[%emt 0:00:16]} 5. O-O {[%emt 0:00:34]} O-O {[%emt 0:00:18]} 6. c4 {[%emt 0:00:56]} dxc4 {[%emt 0:00:27]} 7. Qc2 {[%emt 0:15:27]} a6 {[%emt 0:14:34]} 8. Qxc4 {[%emt 0:03:38]} b5 {[%emt 0:00:31]} 9. Qc2 {[%emt 0:05:21]} Bb7 {[%emt 0:00:22]} 10. Bf4 {[%emt 0:16:36]} Nc6 {[%emt 0:10:10]} 11. Rd1 {[%emt 0:05:17]} Nb4 {[%emt 0:06:12]} 12. Qb3 {[%emt 0:03:22]} Nbd5 {[%emt 0:01:11]} 13. Be5 {[%emt 0:05:36]} Rc8 {[%emt 0:14:30]} 14. Nc3 {[%emt 0:04:35]} Nxc3 {[%emt 0:07:57]} 15. Qxc3 {[%emt 0:00:01]} Ne4 {[%emt 0:01:40]} 16. Qa3 {[%emt 0:00:51]} Nd6 {[%emt 0:03:10]} 17. Bxg7 {[%emt 0:00:57]} Nc4 {[%emt 0:00:56]} 18. Qc5 {[%emt 0:03:38]} Kxg7 {[%emt 0:00:12]} 19. b3 {[%emt 0:07:02]} Nb6 {[%emt 0:00:55]} 20. Ne5 {[%emt 0:00:23]} Bxg2 {[%emt 0:00:42]} 21. Kxg2 {[%emt 0:00:04]} Qd6 {[%emt 0:04:49]} 22. Rac1 {[%emt 0:00:05]} Rfd8 {[%emt 0:01:40]} 23. Nc6 {[%emt 0:03:15]} Rd7 {[%emt 0:00:32]} 24. e3 {[%emt 0:04:44]} Kg8 {[%emt 0:14:26]} 25. Rd2 {[%emt 0:01:08]} h5 {[%emt 0:04:07]} 26. Qg5 {[%emt 0:04:02]} Qd5+ {[%emt 0:04:07]} 27. Qxd5 {[%emt 0:00:11]} Nxd5 {[%emt 0:00:07]} 28. e4 {[%emt 0:00:54]} Nb6 {[%emt 0:01:32]} 29. Kf3 {[%emt 0:00:14]} Kg7 {[%emt 0:03:16]} 30. Ke3 {[%emt 0:00:04]} e6 {[%emt 0:00:51]} 31. Ne5 {[%emt 0:01:48]} Re7 {[%emt 0:00:47]} 32. Rdc2 {[%emt 0:00:07]} f6 {[%emt 0:01:22]} 33. Nd3 {[%emt 0:00:46]} f5 {[%emt 0:00:38]} 34. f3 {[%emt 0:00:05]} fxe4 {[%emt 0:00:15]} 35. fxe4 {[%emt 0:00:07]} a5 {[%emt 0:00:45]} 36. Rc5 {[%emt 0:01:09]} a4 {[%emt 0:00:31]} 37. Rxb5 {[%emt 0:00:14]} Ra8 {[%emt 0:00:18]} 38. b4 {[%emt 0:00:53]} Kh6 {[%emt 0:00:39]} 39. Rbc5 {[%emt 0:01:17]} Ra7 {[%emt 0:00:28]} 40. Ne5 {[%emt 0:01:41]} Rb7 {[%emt 0:00:32]} 41. Nc6 {[%emt 0:13:45]} Rd7 {[%emt 0:00:32]} 42. Na5 {[%emt 0:08:57]} Ra7 {[%emt 0:01:55]} 43. Rc6 {[%emt 0:00:25]} Re7 {[%emt 0:00:30]} 44. a3 {[%emt 0:04:05]} Kg7 {[%emt 0:01:35]} 45. h4 {[%emt 0:00:59]} Kh6 {[%emt 0:03:30]} 46. R1c5 {[%emt 0:01:11]} Kg7 {[%emt 0:01:24]} 47. Re5 {[%emt 0:05:56]} Kf7 {[%emt 0:00:21]} 48. Rc2 {[%emt 0:00:21]} Ra8 {[%emt 0:02:29]} 49. Nc6 {[%emt 0:00:34]} Rd7 {[%emt 0:01:38]} 50. Rg5 {[%emt 0:00:18]} Kf6 {[%emt 0:00:49]} 51. Rf2+ {[%emt 0:00:51]} 1-0

[Event "NOR-ch Elite 2019"]
[Site "Larvik"]
[Date "2019.07.07"]
[Round "3.11"]
[White "Skrondal, Inge Sandstad"]
[Black "Andersen, Alf Roger"]
[Result "1/2-1/2"]
[ECO "D58"]
[WhiteElo "2312"]
[BlackElo "2149"]
[Annotator "NA"]
[PlyCount "117"]
[EventDate "2019.07.05"]
[EventType "swiss"]
[EventCountry "NOR"]
[SourceTitle "playchess.com"]
[Source "ChessBase"]
[SourceQuality "1"]
[TimeControl "40/5400+30:1800+30"]

1. d4 {[%emt 0:00:00]} e6 {[%emt 0:00:19]} 2. c4 {[%emt 0:00:54]} d5 {[%emt 0:00:14]} 3. Nc3 {[%emt 0:00:16]} Nf6 {[%emt 0:00:37]} 4. Bg5 {[%emt 0:02:22]} Be7 {[%emt 0:00:27]} 5. e3 {[%emt 0:00:39]} O-O {[%emt 0:02:03]} 6. Nf3 {[%emt 0:02:19]} h6 {[%emt 0:00:29]} 7. Bh4 {[%emt 0:00:03]} b6 {[%emt 0:00:28]} 8. Be2 {[%emt 0:01:50]} Bb7 {[%emt 0:01:56]} 9. Bxf6 {[%emt 0:01:39]} Bxf6 {[%emt 0:00:08]} 10. cxd5 {[%emt 0:00:05]} exd5 {[%emt 0:00:10]} 11. Qb3 {[%emt 0:04:47]} a6 {[%emt 0:13:59]} 12. O-O {[%emt 0:05:48]} Qd6 {[%emt 0:01:01]} 13. Nd2 {[%emt 0:06:31]} Nd7 {[%emt 0:07:35]} 14. Bf3 {[%emt 0:02:00]} c6 {[%emt 0:00:20]} 15. Rac1 {[%emt 0:04:40]} a5 {[%emt 0:08:31]} 16. Rfd1 {[%emt 0:05:25]} Rfd8 {[%emt 0:11:25]} 17. Nf1 {[%emt 0:04:39]} Qb4 {[%emt 0:02:10]} 18. Qc2 {[%emt 0:00:54]} Nf8 {[%emt 0:01:04]} 19. Na4 {[%emt 0:12:02]} Nd7 {[%emt 0:10:41]} 20. Ng3 {[%emt 0:05:25]} g6 {[%emt 0:09:29]} 21. Bg4 {[%emt 0:04:27]} c5 {[%emt 0:07:34]} 22. a3 {[%emt 0:04:24]} Qb5 {[%emt 0:01:05]} 23. Nc3 {[%emt 0:00:12]} Qc6 {[%emt 0:02:52]} 24. Bf3 {[%emt 0:01:53]} Qe6 {[%emt 0:00:49]} 25. Nge2 {[%emt 0:02:06]} g5 {[%emt 0:03:35]} 26. h3 {[%emt 0:02:39]} Bg7 {[%emt 0:04:50]} 27. Bg4 {[%emt 0:03:54]} Qc6 {[%emt 0:02:01]} 28. Ng3 {[%emt 0:01:42]} Nf6 {[%emt 0:03:46]} 29. Bf5 {[%emt 0:08:34]} Bc8 {[%emt 0:02:26]} 30. dxc5 {[%emt 0:02:24]} bxc5 {[%emt 0:01:10]} 31. Na4 {[%emt 0:01:35]} c4 {[%emt 0:00:51]} 32. Nc3 {[%emt 0:01:33]} Be6 {[%emt 0:00:46]} 33. Rd2 {[%emt 0:00:30]} Rab8 {[%emt 0:00:54]} 34. Rcd1 {[%emt 0:00:58]} Rb3 {[%emt 0:00:40]} 35. e4 {[%emt 0:01:19]} d4 {[%emt 0:00:30]} 36. Rxd4 {[%emt 0:00:12]} Rdb8 {[%emt 0:00:31]} 37. Nd5 {[%emt 0:02:14]} Bxd5 {[%emt 0:00:30]} 38. exd5 {[%emt 0:00:11]} Qd6 {[%emt 0:00:28]} 39. Qxc4 {[%emt 0:03:36]} Rxb2 {[%emt 0:00:17]} 40. R4d3 {[%emt 0:00:17]} Rd8 {[%emt 0:00:47]} 41. Bg4 {[%emt 0:12:43]} Qb6 {[%emt 0:07:26]} 42. Qd4 {[%emt 0:06:41]} Qxd4 {[%emt 0:06:40]} 43. Rxd4 {[%emt 0:00:03]} Nxg4 {[%emt 0:06:23]} 44. Rxg4 {[%emt 0:00:02]} Bf8 {[%emt 0:00:42]} 45. h4 {[%emt 0:05:48]} f6 {[%emt 0:03:43]} 46. hxg5 {[%emt 0:02:27]} hxg5 {[%emt 0:00:05]} 47. Ra4 {[%emt 0:03:14]} Rb5 {[%emt 0:01:21]} 48. Ne4 {[%emt 0:01:02]} f5 {[%emt 0:03:05]} 49. Nxg5 {[%emt 0:00:29]} Rbxd5 {[%emt 0:01:13]} 50. Rxd5 {[%emt 0:00:15]} Rxd5 {[%emt 0:00:02]} 51. g3 {[%emt 0:00:30]} Be7 {[%emt 0:01:48]} 52. Ne6 {[%emt 0:00:30]} Kf7 {[%emt 0:00:33]} 53. Nf4 {[%emt 0:00:05]} Rb5 {[%emt 0:00:31]} 54. Kg2 {[%emt 0:00:51]} Bd6 {[%emt 0:00:24]} 55. Kh3 {[%emt 0:01:15]} Kf6 {[%emt 0:02:29]} 56. Nh5+ {[%emt 0:01:48]} Kg6 {[%emt 0:00:21]} 57. Nf4+ {[%emt 0:00:06]} Kf6 {[%emt 0:00:06]} 58. Nh5+ {[%emt 0:00:18]} Kg6 {[%emt 0:00:06]} 59. Nf4+ {[%emt 0:00:04]} 1/2-1/2

[Event "NOR-ch Elite 2019"]
[Site "Larvik"]
[Date "2019.07.07"]
[Round "3.12"]
[White "Ingebretsen, Jens E"]
[Black "Kaasen, Tor Fredrik"]
[Result "1/2-1/2"]
[ECO "A25"]
[WhiteElo "2276"]
[BlackElo "2376"]
[Annotator "NA"]
[PlyCount "125"]
[EventDate "2019.07.05"]
[EventType "swiss"]
[EventCountry "NOR"]
[SourceTitle "playchess.com"]
[Source "ChessBase"]
[SourceQuality "1"]
[TimeControl "40/5400+30:1800+30"]

1. c4 {[%emt 0:00:00]} e5 {[%emt 0:00:07]} 2. Nc3 {[%emt 0:00:00]} Nc6 {[%emt 0:00:18]} 3. Nf3 {[%emt 0:00:00]} g6 {[%emt 0:01:16]} 4. e3 {[%emt 0:02:17]} Bg7 {[%emt 0:00:49]} 5. d4 {[%emt 0:00:13]} d6 {[%emt 0:00:31]} 6. b3 {[%emt 0:02:30]} Bg4 {[%emt 0:03:16]} 7. Be2 {[%emt 0:02:58]} exd4 {[%emt 0:08:32]} 8. Nxd4 {[%emt 0:01:43]} Bxe2 {[%emt 0:01:33]} 9. Ndxe2 {[%emt 0:02:00]} Nge7 {[%emt 0:00:31]} 10. Bb2 {[%emt 0:01:59]} Qd7 {[%emt 0:01:04]} 11. Qd2 {[%emt 0:00:57]} O-O-O {[%emt 0:02:21]} 12. O-O-O {[%emt 0:06:15]} h5 {[%emt 0:02:53]} 13. Nf4 {[%emt 0:02:08]} Ne5 {[%emt 0:03:10]} 14. Qe2 {[%emt 0:08:57]} Kb8 {[%emt 0:06:05]} 15. Nd3 {[%emt 0:04:11]} Rhe8 {[%emt 0:05:10]} 16. Nxe5 {[%emt 0:02:26]} Bxe5 {[%emt 0:00:06]} 17. Nd5 {[%emt 0:02:41]} Nxd5 {[%emt 0:01:46]} 18. Rxd5 {[%emt 0:00:17]} c6 {[%emt 0:02:08]} 19. Rd3 {[%emt 0:01:39]} Qf5 {[%emt 0:03:05]} 20. Bxe5 {[%emt 0:04:15]} Qxe5 {[%emt 0:03:46]} 21. Kc2 {[%emt 0:14:22]} d5 {[%emt 0:02:09]} 22. Rhd1 {[%emt 0:03:52]} Qxh2 {[%emt 0:06:39]} 23. Qf3 {[%emt 0:01:27]} Qc7 {[%emt 0:00:10]} 24. cxd5 {[%emt 0:02:55]} Rxd5 {[%emt 0:00:39]} 25. Rxd5 {[%emt 0:00:43]} cxd5+ {[%emt 0:00:07]} 26. Kb2 {[%emt 0:02:46]} Rc8 {[%emt 0:02:45]} 27. Qxd5 {[%emt 0:10:22]} Qc3+ {[%emt 0:02:34]} 28. Ka3 {[%emt 0:00:33]} a6 {[%emt 0:06:21]} 29. Qd2 {[%emt 0:02:49]} Qc2 {[%emt 0:03:22]} 30. f3 {[%emt 0:01:02]} f5 {[%emt 0:03:46]} 31. f4 {[%emt 0:14:26]} h4 {[%emt 0:05:53]} 32. Qxc2 {[%emt 0:02:29]} Rxc2 {[%emt 0:00:07]} 33. Rh1 {[%emt 0:00:03]} Rxg2 {[%emt 0:00:27]} 34. Rxh4 {[%emt 0:00:04]} Rg3 {[%emt 0:00:23]} 35. Rh8+ {[%emt 0:00:52]} Kc7 {[%emt 0:00:14]} 36. Rg8 {[%emt 0:00:04]} Rxe3 {[%emt 0:00:27]} 37. Rg7+ {[%emt 0:00:05]} Kb8 {[%emt 0:00:07]} 38. Rg8+ {[%emt 0:00:17]} Ka7 {[%emt 0:00:05]} 39. Rxg6 {[%emt 0:00:03]} Re4 {[%emt 0:00:09]} 40. Rf6 {[%emt 0:00:08]} Rxf4 {[%emt 0:00:05]} 41. Kb2 {[%emt 0:30:49]} Rf1 {[%emt 0:32:46]} 42. Kc3 {[%emt 0:01:47]} f4 {[%emt 0:01:19]} 43. Kd3 {[%emt 0:00:00]} f3 {[%emt 0:00:00]} 44. Ke3 {[%emt 0:00:00]} Re1+ {[%emt 0:00:00]} 45. Kd3 {[%emt 0:00:00]} Rd1+ {[%emt 0:00:00]} 46. Ke3 {[%emt 0:00:00]} Ra1 {[%emt 0:00:00]} 47. Rxf3 {[%emt 0:00:00]} Rxa2 {[%emt 0:00:00]} 48. Kd3 {[%emt 0:00:00]} Kb6 {[%emt 0:00:00]} 49. Rf5 {[%emt 0:00:00]} Rh2 {[%emt 0:00:00]} 50. Kc3 {[%emt 0:00:00]} Rh3+ {[%emt 0:00:00]} 51. Kb4 {[%emt 0:00:00]} a5+ {[%emt 0:00:00]} 52. Ka4 {[%emt 0:00:00]} Rh4+ {[%emt 0:00:00]} 53. Ka3 {[%emt 0:00:00]} Ka6 {[%emt 0:00:00]} 54. Rf6+ {[%emt 0:00:00]} b6 {[%emt 0:00:00]} 55. Rg6 {[%emt 0:00:00]} Rh5 {[%emt 0:00:00]} 56. Rf6 {[%emt 0:00:00]} Kb5 {[%emt 0:00:00]} 57. Rg6 {[%emt 0:00:00]} Rc5 {[%emt 0:00:00]} 58. Rh6 {[%emt 0:00:00]} Rc6 {[%emt 0:00:00]} 59. Rh3 {[%emt 0:00:00]} Rc5 {[%emt 0:00:00]} 60. Rh6 {[%emt 0:00:00]} Ka6 {[%emt 0:00:00]} 61. Rg6 {[%emt 0:00:00]} Kb7 {[%emt 0:00:00]} 62. Rg7+ {[%emt 0:00:00]} Rc7 {[%emt 0:00:00]} 63. Rxc7+ {[%emt 0:00:00]} 1/2-1/2

[Event "NOR-ch Elite 2019"]
[Site "Larvik"]
[Date "2019.07.07"]
[Round "3.13"]
[White "Altarbosh, Ward"]
[Black "Vitenberg, Noam Aviv"]
[Result "1-0"]
[ECO "B11"]
[WhiteElo "2202"]
[BlackElo "2300"]
[Annotator "NA"]
[PlyCount "145"]
[EventDate "2019.07.05"]
[EventType "swiss"]
[EventCountry "NOR"]
[SourceTitle "playchess.com"]
[Source "ChessBase"]
[SourceQuality "1"]
[TimeControl "40/5400+30:1800+30"]

1. e4 {[%emt 0:00:00]} c6 {[%emt 0:00:00]} 2. Nf3 {[%emt 0:00:00]} d5 {[%emt 0:00:00]} 3. Nc3 {[%emt 0:00:00]} Nf6 {[%emt 0:00:08]} 4. e5 {[%emt 0:00:00]} Ne4 {[%emt 0:00:11]} 5. Ne2 {[%emt 0:00:00]} Qb6 {[%emt 0:00:09]} 6. d4 {[%emt 0:00:02]} e6 {[%emt 0:00:08]} 7. Ng3 {[%emt 0:00:12]} c5 {[%emt 0:00:07]} 8. c3 {[%emt 0:00:11]} Nc6 {[%emt 0:00:08]} 9. Bd3 {[%emt 0:00:14]} cxd4 {[%emt 0:00:08]} 10. Nxe4 {[%emt 0:09:20]} dxe4 {[%emt 0:00:20]} 11. Bxe4 {[%emt 0:00:06]} dxc3 {[%emt 0:02:21]} 12. bxc3 {[%emt 0:00:33]} Bc5 {[%emt 0:03:22]} 13. O-O {[%emt 0:00:15]} Qc7 {[%emt 0:02:34]} 14. Qe2 {[%emt 0:07:34]} Bd7 {[%emt 0:01:46]} 15. Rb1 {[%emt 0:00:07]} Rb8 {[%emt 0:00:47]} 16. Rd1 {[%emt 0:16:41]} Ne7 {[%emt 0:06:16]} 17. Bg5 {[%emt 0:03:10]} Bc6 {[%emt 0:13:58]} 18. Nd4 {[%emt 0:06:35]} Bxe4 {[%emt 0:09:57]} 19. Qxe4 {[%emt 0:00:22]} a6 {[%emt 0:02:06]} 20. Nb3 {[%emt 0:08:18]} Nd5 {[%emt 0:12:29]} 21. Rd3 {[%emt 0:09:48]} h6 {[%emt 0:14:27]} 22. Bd2 {[%emt 0:02:12]} O-O {[%emt 0:08:24]} 23. c4 {[%emt 0:15:48]} Ne7 {[%emt 0:05:18]} 24. Qg4 {[%emt 0:01:01]} f5 {[%emt 0:03:30]} 25. Qh5 {[%emt 0:01:45]} f4 {[%emt 0:03:30]} 26. Qg4 {[%emt 0:05:50]} Rf5 {[%emt 0:02:33]} 27. Nxc5 {[%emt 0:01:48]} Qxc5 {[%emt 0:00:18]} 28. Rd7 {[%emt 0:00:05]} h5 {[%emt 0:01:29]} 29. Qd1 {[%emt 0:02:09]} Nc6 {[%emt 0:03:16]} 30. Bc3 {[%emt 0:01:53]} Qxc4 {[%emt 0:00:40]} 31. Qd6 {[%emt 0:01:11]} Rg5 {[%emt 0:01:14]} 32. h4 {[%emt 0:00:14]} Rg6 {[%emt 0:02:32]} 33. Qd3 {[%emt 0:04:29]} Qxd3 {[%emt 0:01:14]} 34. Rxd3 {[%emt 0:00:06]} b5 {[%emt 0:00:50]} 35. f3 {[%emt 0:00:22]} b4 {[%emt 0:00:26]} 36. Bb2 {[%emt 0:00:37]} Rb5 {[%emt 0:00:08]} 37. Re1 {[%emt 0:01:42]} Ra5 {[%emt 0:00:55]} 38. a3 {[%emt 0:02:00]} bxa3 {[%emt 0:00:47]} 39. Rxa3 {[%emt 0:00:35]} Rd5 {[%emt 0:00:33]} 40. Re2 {[%emt 0:00:44]} a5 {[%emt 0:00:22]} 41. Ra4 {[%emt 0:31:50]} Rd1+ {[%emt 0:15:22]} 42. Kh2 {[%emt 0:00:00]} Ne7 {[%emt 0:00:07]} 43. Bc3 {[%emt 0:00:00]} Nf5 {[%emt 0:01:24]} 44. Rxf4 {[%emt 0:00:00]} Rd5 {[%emt 0:05:07]} 45. Ra4 {[%emt 0:00:00]} Rc5 {[%emt 0:00:44]} 46. Be1 {[%emt 0:00:00]} Kf7 {[%emt 0:03:11]} 47. Rf4 {[%emt 0:00:00]} Ke8 {[%emt 0:01:19]} 48. g4 {[%emt 0:00:00]} hxg4 {[%emt 0:02:52]} 49. fxg4 {[%emt 0:00:00]} Ne7 {[%emt 0:01:03]} 50. g5 {[%emt 0:00:00]} Nc6 {[%emt 0:00:26]} 51. Rfe4 {[%emt 0:00:00]} a4 {[%emt 0:01:04]} 52. Bg3 {[%emt 0:00:00]} a3 {[%emt 0:01:05]} 53. Ra4 {[%emt 0:00:22]} Rc3 {[%emt 0:00:43]} 54. Bf4 {[%emt 0:00:43]} Rb3 {[%emt 0:01:27]} 55. h5 {[%emt 0:00:58]} Rb2 {[%emt 0:00:54]} 56. Rg2 {[%emt 0:00:59]} Rb4 {[%emt 0:01:04]} 57. Ra8+ {[%emt 0:00:40]} Kd7 {[%emt 0:00:30]} 58. Kg3 {[%emt 0:01:13]} Nd4 {[%emt 0:00:31]} 59. Rd2 {[%emt 0:00:47]} Kc6 {[%emt 0:00:44]} 60. hxg6 {[%emt 0:00:55]} Nf5+ {[%emt 0:00:18]} 61. Kg4 {[%emt 0:00:19]} Rb3 {[%emt 0:00:40]} 62. Ra2 {[%emt 0:00:28]} Kd5 {[%emt 0:00:26]} 63. R8xa3 {[%emt 0:00:09]} Rb1 {[%emt 0:00:07]} 64. Rd2+ {[%emt 0:00:11]} Kc4 {[%emt 0:00:32]} 65. Ra6 {[%emt 0:00:12]} Rg1+ {[%emt 0:00:38]} 66. Kh3 {[%emt 0:00:05]} Rf1 {[%emt 0:00:20]} 67. Bh2 {[%emt 0:00:36]} Rf3+ {[%emt 0:00:32]} 68. Kg4 {[%emt 0:00:09]} Rb3 {[%emt 0:00:14]} 69. Rxe6 {[%emt 0:00:30]} Ne3+ {[%emt 0:00:31]} 70. Kf4 {[%emt 0:00:06]} Nd5+ {[%emt 0:01:12]} 71. Rxd5 {[%emt 0:00:03]} Kxd5 {[%emt 0:00:12]} 72. Rd6+ {[%emt 0:00:03]} Kc5 {[%emt 0:00:06]} 73. Kf5 {[%emt 0:00:04] Kd5 Ke4+} 1-0

[Event "NOR-ch Elite 2019"]
[Site "Larvik"]
[Date "2019.07.08"]
[Round "4.2"]
[White "Haldorsen, Benjamin"]
[Black "Urkedal, Frode Olav Olsen"]
[Result "0-1"]
[ECO "C54"]
[WhiteElo "2444"]
[BlackElo "2566"]
[Annotator "ChessBase"]
[PlyCount "114"]
[EventDate "2019.07.05"]
[EventType "swiss"]
[EventCountry "NOR"]
[SourceTitle "playchess.com"]
[Source "ChessBase"]
[SourceQuality "1"]
[TimeControl "40/5400+30:1800+30"]

1. e4 {[%emt 0:00:00]} e5 {[%emt 0:00:00]} 2. Nf3 {[%emt 0:00:28]} Nc6 {[%emt 0:00:00]} 3. Bc4 {[%emt 0:00:15]} Nf6 {[%emt 0:00:37]} 4. d3 {[%emt 0:00:29]} Bc5 {[%emt 0:00:14]} 5. O-O {[%emt 0:00:25]} d6 {[%emt 0:01:37]} 6. c3 {[%emt 0:00:58]} a5 {[%emt 0:02:03]} 7. Re1 {[%emt 0:01:27]} h6 {[%emt 0:01:02]} 8. Nbd2 {[%emt 0:00:17]} O-O {[%emt 0:00:22]} 9. Nf1 {[%emt 0:02:08]} Be6 {[%emt 0:01:22]} 10. Bb5 {[%emt 0:03:07]} Ne7 {[%emt 0:02:20]} 11. d4 {[%emt 0:06:57]} Bb6 {[%emt 0:00:23]} 12. dxe5 {[%emt 0:09:52]} dxe5 {[%emt 0:02:07]} 13. Qxd8 {[%emt 0:03:38]} Rfxd8 {[%emt 0:00:35]} 14. Nxe5 {[%emt 0:02:44]} a4 {[%emt 0:01:12]} 15. Nc4 {[%emt 0:12:10]} Bc5 {[%emt 0:11:55]} 16. Ncd2 {[%emt 0:07:23]} Ng4 {[%emt 0:04:43]} 17. Ne3 {[%emt 0:00:56]} Nxe3 {[%emt 0:09:08]} 18. fxe3 {[%emt 0:00:34]} Ra5 {[%emt 0:20:29]} 19. Bf1 {[%emt 0:01:24]} Ng6 {[%emt 0:04:48]} 20. Nf3 {[%emt 0:00:29]} Ba7 {[%emt 0:02:10]} 21. Nd4 {[%emt 0:03:19]} Ne5 {[%emt 0:05:10]} 22. Nxe6 {[%emt 0:01:05]} fxe6 {[%emt 0:00:06]} 23. Rb1 {[%emt 0:00:26]} Bb6 {[%emt 0:04:37]} 24. b4 {[%emt 0:02:05]} axb3 {[%emt 0:02:14]} 25. axb3 {[%emt 0:00:05]} Ra2 {[%emt 0:01:58]} 26. Rb2 {[%emt 0:07:39]} Rxb2 {[%emt 0:02:17]} 27. Bxb2 {[%emt 0:00:01]} Rd2 {[%emt 0:00:11]} 28. Re2 {[%emt 0:00:32]} Bxe3+ {[%emt 0:08:01]} 29. Rxe3 {[%emt 0:00:31]} Rxb2 {[%emt 0:00:07]} 30. b4 {[%emt 0:00:28]} Rc2 {[%emt 0:01:07]} 31. Be2 {[%emt 0:01:39]} Kf7 {[%emt 0:01:13]} 32. h3 {[%emt 0:01:44]} g5 {[%emt 0:01:36]} 33. Kf1 {[%emt 0:03:50]} Rc1+ {[%emt 0:00:38]} 34. Kf2 {[%emt 0:00:07]} Kg6 {[%emt 0:00:17]} 35. Kg3 {[%emt 0:05:50]} h5 {[%emt 0:02:33]} 36. Kf2 {[%emt 0:03:30]} h4 {[%emt 0:00:17]} 37. g3 {[%emt 0:00:54]} b6 {[%emt 0:02:31]} 38. Kg2 {[%emt 0:01:37]} Rc2 {[%emt 0:00:28]} 39. Kf1 {[%emt 0:01:00]} Rc1+ {[%emt 0:02:07]} 40. Kg2 {[%emt 0:00:35]} Kf6 {[%emt 0:00:05]} 41. gxh4 {[%emt 0:32:06]} gxh4 {[%emt 0:30:15]} 42. Kf2 {[%emt 0:00:04]} Kg5 {[%emt 0:00:14]} 43. c4 {[%emt 0:05:19]} Nxc4 {[%emt 0:01:20]} 44. Rd3 {[%emt 0:00:13]} Ne5 {[%emt 0:00:55]} 45. Rd8 {[%emt 0:02:35]} Rc3 {[%emt 0:00:12]} 46. Rg8+ {[%emt 0:01:40]} Kf4 {[%emt 0:00:50]} 47. Bg4 {[%emt 0:00:27]} Rg3 {[%emt 0:00:00]} 48. Rg7 {[%emt 0:00:00]} Nxg4+ {[%emt 0:00:00]} 49. hxg4 {[%emt 0:00:00]} Rc3 {[%emt 0:00:00]} 50. g5 {[%emt 0:00:00]} Rc2+ {[%emt 0:00:00]} 51. Ke1 {[%emt 0:00:00]} Kxe4 {[%emt 0:00:00]} 52. Rh7 {[%emt 0:00:00]} Kf5 {[%emt 0:00:00]} 53. Rxh4 {[%emt 0:00:00]} Kxg5 {[%emt 0:00:00]} 54. Rd4 {[%emt 0:00:00]} b5 {[%emt 0:00:00]} 55. Kd1 {[%emt 0:00:00]} Rc4 {[%emt 0:00:00]} 56. Rd7 {[%emt 0:00:00]} Kf5 {[%emt 0:00:00]} 57. Kd2 {[%emt 0:00:00]} Ke5 {[%emt 0:00:00]} 0-1

[Event "NOR-ch Elite 2019"]
[Site "Larvik"]
[Date "2019.07.08"]
[Round "4.3"]
[White "Elsness, Frode"]
[Black "Lie, Kjetil A."]
[Result "1/2-1/2"]
[ECO "E63"]
[WhiteElo "2436"]
[BlackElo "2538"]
[Annotator "RC"]
[PlyCount "47"]
[EventDate "2019.07.05"]
[EventType "swiss"]
[EventCountry "NOR"]
[SourceTitle "playchess.com"]
[Source "ChessBase"]
[SourceQuality "1"]
[TimeControl "40/5400+30:1800+30"]

1. c4 {[%emt 0:00:51]} d6 {[%emt 0:03:22]} 2. Nc3 {[%emt 0:00:00]} g6 {[%emt 0:02:14]} 3. Nf3 {[%emt 0:03:31]} Bg7 {[%emt 0:01:25]} 4. g3 {[%emt 0:00:12]} Nf6 {[%emt 0:03:01]} 5. Bg2 {[%emt 0:00:35]} O-O {[%emt 0:00:33]} 6. O-O {[%emt 0:01:34]} Nc6 {[%emt 0:01:55]} 7. d4 {[%emt 0:00:16]} a6 {[%emt 0:00:34]} 8. b3 {[%emt 0:01:17]} Rb8 {[%emt 0:00:32]} 9. d5 {[%emt 0:04:09]} Na5 {[%emt 0:01:17]} 10. Bg5 {[%emt 0:01:10]} c5 {[%emt 0:16:10]} 11. dxc6 {[%emt 0:00:11]} Nxc6 {[%emt 0:02:38]} 12. Rc1 {[%emt 0:01:48]} Bf5 {[%emt 0:04:54]} 13. Qd2 {[%emt 0:05:37]} Ne4 {[%emt 0:08:04]} 14. Nxe4 {[%emt 0:00:41]} Bxe4 {[%emt 0:00:25]} 15. Rfd1 {[%emt 0:05:00]} Qb6 {[%emt 0:03:39]} 16. Nh4 {[%emt 0:09:34]} Bxg2 {[%emt 0:00:41]} 17. Nxg2 {[%emt 0:00:12]} Rfe8 {[%emt 0:11:59]} 18. Ne3 {[%emt 0:05:59]} Qb4 {[%emt 0:07:44]} 19. Qxb4 {[%emt 0:11:01]} Nxb4 {[%emt 0:00:04]} 20. Nd5 {[%emt 0:00:21]} Nxd5 {[%emt 0:02:09]} 21. Rxd5 {[%emt 0:04:05]} b6 {[%emt 0:03:59]} 22. e4 {[%emt 0:04:52]} Kf8 {[%emt 0:00:47]} 23. a4 {[%emt 0:02:37]} Rec8 {[%emt 0:00:40]} 24. Bf4 {[%emt 0:11:33]} 1/2-1/2